bitfinex/quotes_ETHUSD_20250722
["timestamp","ask_amount","ask_price","bid_price","bid_amount"]
[1753212932357,24.42400811,3696.3,3696.2,1e-08]
[1753212932748,21.46600811,3696.3,3696.2,1e-08]
[1753212932966,24.42400811,3696.3,3696.2,1e-08]
[1753212933575,24.42500811,3696.3,3696.2,1e-08]
[1753212934893,21.7196,3696.3,3696.2,1e-08]
[1753212935095,2.959,3696.3,3696.2,1e-08]
[1753212935574,17.8974,3696.3,3696.2,1e-08]
[1753212936487,21.42100811,3696.3,3696.2,1e-08]
[1753212936807,24.42100811,3696.3,3696.2,1e-08]
[1753212938379,25.0589388,3696.3,3696.2,1e-08]
[1753212940905,22.0999388,3696.3,3696.2,1e-08]
[1753212941114,15.13793069,3696.3,3696.2,1e-08]
[1753212941402,18.09693069,3696.3,3696.2,1e-08]
[1753212943170,3.59693069,3696.3,3696.2,1e-08]
[1753212943571,6.3023388,3696.3,3696.2,1e-08]
[1753212943801,3.59693069,3696.3,3696.2,1e-08]
[1753212944009,0.63793069,3696.3,3696.2,1e-08]
[1753212944512,3.59693069,3696.3,3696.2,1e-08]
[1753212945457,0.63793069,3696.3,3696.2,3.16478131]
[1753212945663,0.63793069,3696.3,3696.2,4.55462126]
[1753212945949,3.0,3697.0,3696.5,2.70525946]
[1753212946099,0.7898,3697.1,3696.2,1.26200001]
[1753212946299,2.959,3697.0,3696.6,2.70516192]
[1753212946649,0.002,3697.1,3697.0,2.70489586]
[1753212946946,0.002,3697.1,3697.0,3.16419586]
[1753212947236,0.002,3697.1,3697.0,3.7280056]
[1753212947548,0.002,3697.1,3697.0,3.71419586]
[1753212947716,0.002,3697.1,3697.0,4.43747437]
[1753212948341,1e-08,3697.1,3697.0,8.23547437]
[1753212952360,1e-08,3697.1,3697.0,8.21157437]
[1753212954365,1e-08,3697.1,3697.0,7.66157437]
[1753212954520,1e-08,3697.1,3697.0,10.61857437]
[1753212954724,1e-08,3697.1,3697.0,11.16857437]
[1753212955476,1e-08,3697.1,3697.0,8.21157437]
[1753212955770,1e-08,3697.1,3697.0,11.16857437]
[1753212957146,1e-08,3698.5,3698.4,2.70387194]
[1753212957725,1e-08,3698.5,3698.4,15.50029708]
[1753212957935,1e-08,3698.5,3698.4,16.29209708]
[1753212958461,1e-08,3698.5,3698.4,19.29209708]
[1753212959367,1e-08,3698.5,3698.4,10.43807194]
[1753212959539,1e-08,3698.5,3698.4,11.75228006]
[1753212960734,0.002,3699.3,3699.2,4.01118719]
[1753212960949,0.002,3699.3,3699.2,15.83498186]
[1753212961149,0.002,3699.3,3699.2,16.25661233]
[1753212961349,0.002,3699.3,3699.2,3.7139]
[1753212961585,0.002,3699.3,3699.2,5.65928719]
[1753212961973,0.002,3699.3,3698.9,2.956]
[1753212962275,0.449,3699.2,3698.9,2.956]
[1753212962471,0.449,3699.1,3698.7,2.956]
[1753212962767,1.2689,3699.0,3698.5,5.70379883]
[1753212963075,1.2689,3699.0,3698.5,3.0]
[1753212963575,0.449,3698.9,3698.5,3.0]
[1753212963774,0.03379474,3698.8,3698.2,2.955]
[1753212964082,0.449,3698.9,3698.1,3.0]
[1753212964276,2.70363252,3698.8,3698.1,2.70407655]
[1753212964451,2.7036751,3698.7,3698.0,5.70413841]
[1753212964650,2.70360229,3698.8,3698.1,2.70406941]
[1753212964858,3.15251534,3698.9,3698.1,2.70406941]
[1753212965170,0.8199,3699.0,3698.1,0.55]
[1753212965389,0.7657,3699.3,3698.3,0.55]
[1753212965591,0.002,3699.3,3699.1,2.70335484]
[1753212965781,0.002,3699.3,3698.6,0.56377249]
[1753212965989,0.002,3699.3,3699.1,2.70331662]
[1753212966361,0.002,3699.3,3699.2,2.70328719]
[1753212966963,0.002,3699.3,3699.1,2.70335252]
[1753212967295,0.002,3699.3,3699.2,2.70328719]
[1753212967467,0.002,3699.3,3699.2,3.50178719]
[1753212967661,0.002,3699.3,3699.2,4.16722044]
[1753212968789,0.002,3699.3,3699.2,4.60262044]
[1753212968995,0.002,3699.3,3698.6,0.001]
[1753212968996,3.0,3699.2,3698.6,0.001]
[1753212969179,2.70365263,3698.7,3698.6,0.001]
[1753212969478,17.99135263,3698.7,3698.6,0.001]
[1753212969776,18.44035263,3698.7,3698.6,0.001]
[1753212970616,2.70428831,3697.9,3697.2,0.823]
[1753212970776,0.03380388,3697.8,3696.8,6.42679004]
[1753212970964,0.03380388,3697.8,3696.9,3.0]
[1753212970965,2.70440484,3697.7,3696.9,3.0]
[1753212971164,3.15333051,3697.8,3697.0,0.942679]
[1753212971365,0.449,3697.8,3697.0,0.942679]
[1753212971605,0.449,3697.8,3697.0,2.70484824]
[1753212972176,0.449,3697.8,3696.9,2.70494598]
[1753212972377,3.1533142,3697.8,3696.9,2.70495314]
[1753212972696,0.449,3697.8,3697.0,2.70485232]
[1753212973086,0.449,3697.8,3696.9,2.70494285]
[1753212973283,0.449,3697.8,3697.0,2.70488493]
[1753212973496,0.449,3697.8,3696.9,0.98760513]
[1753212973702,0.449,3697.8,3696.9,3.69255197]
[1753212974201,0.449,3697.8,3696.9,0.98760513]
[1753212974398,0.449,3697.8,3697.0,0.51898051]
[1753212974795,0.449,3697.8,3697.0,3.51898051]
[1753212975116,0.7627,3698.2,3697.4,2.70453085]
[1753212975304,3.7177,3698.2,3697.5,2.70446827]
[1753212975511,3.7177,3698.2,3697.4,2.70457758]
[1753212975512,14.5,3698.1,3697.4,2.70457758]
[1753212975710,14.5,3698.1,3697.4,3.29042999]
[1753212975894,0.7627,3698.2,3697.4,0.58585241]
[1753212976097,3.404,3698.5,3697.6,3.46585694]
[1753212976297,3.7314,3698.6,3698.0,2.70409266]
[1753212976800,3.7314,3698.6,3698.1,2.70409076]
[1753212977017,3.7314,3698.6,3698.0,2.70415779]
[1753212977320,3.7314,3698.6,3697.8,0.55]
[1753212977519,3.7314,3698.6,3697.8,3.69938379]
[1753212977520,6.43514371,3698.6,3697.8,3.69938379]
[1753212977719,3.7314,3698.6,3697.8,3.69942239]
[1753212978037,3.7314,3698.6,3698.0,2.7041153]
[1753212978522,3.7314,3698.6,3698.1,2.7040785]
[1753212978685,0.7764,3698.6,3698.1,2.7040785]
[1753212978886,0.7764,3698.6,3698.0,2.7041449]
[1753212979126,0.7764,3698.6,3698.1,2.70408975]
[1753212979297,0.8219,3699.2,3698.5,2.70374192]
[1753212979505,0.8219,3699.2,3698.6,2.70372511]
[1753212979688,0.472092,3699.1,3698.3,0.7749]
[1753212980022,0.472092,3699.1,3697.9,0.7749]
[1753212980182,2.70391713,3698.4,3697.6,2.955]
[1753212980408,0.4383,3698.5,3697.7,0.25218066]
[1753212980615,0.4383,3698.5,3698.0,2.70411083]
[1753212980852,0.4383,3698.5,3698.1,0.25218066]
[1753212981151,3.52843918,3699.0,3698.2,0.25218066]
[1753212981309,0.825,3699.0,3698.3,0.25218066]
[1753212981515,0.825,3699.0,3698.4,2.95598345]
[1753212981751,0.8053,3699.3,3698.5,0.26596079]
[1753212981952,0.002,3699.3,3699.2,2.70328719]
[1753212982123,0.002,3699.3,3699.2,2.95546785]
[1753212982329,0.002,3699.3,3699.2,2.95343738]
[1753212982536,0.002,3699.3,3699.2,0.25218066]
[1753212982754,3.96811412,3699.3,3699.2,0.25218066]
[1753212983443,4.00190429,3699.3,3699.2,0.25218066]
[1753212983642,6.95690429,3699.3,3699.2,0.25218066]
[1753212983839,6.92311412,3699.3,3699.2,0.25218066]
[1753212984741,6.92311412,3699.3,3697.1,0.77]
[1753212984742,0.8189,3698.2,3697.1,0.77]
[1753212984947,0.8189,3698.2,3697.2,0.69998146]
[1753212985122,0.8189,3698.2,3697.7,2.70437719]
[1753212985323,1.2572,3698.2,3697.8,0.25218146]
[1753212985650,1.2572,3698.2,3697.9,0.25222746]
[1753212985815,1.2572,3698.2,3697.3,1.0442962]
[1753212985816,0.4383,3698.1,3698.0,0.25222746]
[1753212987324,2.954,3698.5,3698.0,0.25222746]
[1753212987537,2.954,3698.5,3698.1,0.25222746]
[1753212987852,2.954,3698.5,3698.2,0.25222746]
[1753212988062,6.09610012,3698.5,3698.3,0.25222746]
[1753212988223,3.3923,3698.5,3698.4,0.25222746]
[1753212989420,2.954,3698.5,3698.4,0.25222746]
[1753212991256,3.3923,3698.5,3698.4,0.25222746]
[1753212991656,3.3923,3698.5,3698.4,0.25232726]
[1753212992161,6.12989631,3698.5,3698.4,0.25232726]
[1753212992459,6.85549883,3698.5,3698.4,0.25232726]
[1753212992757,21.35549883,3698.5,3698.4,0.25232726]
[1753212994760,2.70409129,3698.1,3698.0,0.001]
[1753212994961,5.69189243,3698.1,3698.0,0.25341185]
[1753212995134,3.3923,3698.1,3698.0,0.25341185]
[1753212995333,3.3923,3698.1,3698.0,0.25341058]
[1753212995559,6.09639129,3698.1,3698.0,0.25341058]
[1753212995966,2.70409129,3698.1,3698.0,0.25341058]
[1753212996171,3.3923,3698.1,3698.0,0.25341058]
[1753212996595,0.4383,3698.1,3698.0,0.25341058]
[1753212996752,3.3923,3698.1,3698.0,0.25341058]
[1753212997311,2.7038992,3698.4,3698.0,0.25341058]
[1753212997312,15.2594,3698.5,3698.0,0.25341058]
[1753212997444,2.954,3698.4,3698.1,0.25241058]
[1753212997642,2.70394505,3698.3,3698.2,0.25241058]
[1753212997883,3.14224505,3698.3,3698.2,0.25241058]
[1753212999073,0.4383,3698.3,3698.2,0.25241058]
[1753212999287,3.14224505,3698.3,3698.2,0.25241058]
[1753212999798,3.17604436,3698.3,3698.2,0.25241058]
[1753212999997,3.17604436,3698.3,3698.0,0.001]
[1753212999998,2.70409129,3698.1,3698.0,0.001]
[1753213000295,5.69189243,3698.1,3698.0,0.001]
[1753213000597,3.3923,3698.1,3698.0,0.001]
[1753213000994,20.59639129,3698.1,3698.0,0.001]
[1753213001764,17.8923,3698.1,3698.0,0.001]
[1753213001966,17.454,3698.1,3698.0,0.001]
[1753213004478,3.90150507,3698.5,3698.0,0.001]
[1753213004681,2.954,3698.4,3698.0,0.001]
[1753213004891,5.65788189,3698.4,3698.0,0.001]
[1753213005095,17.20399877,3698.3,3698.0,0.001]
[1753213005505,2.70402742,3698.2,3698.0,0.001]
[1753213005670,5.65802742,3698.2,3698.0,0.001]
[1753213006013,2.954,3698.2,3698.0,0.001]
[1753213006511,2.954,3698.1,3698.0,0.001]
[1753213006729,0.002,3698.6,3698.2,2.70401817]
[1753213007008,0.002,3698.6,3698.3,0.4478]
[1753213007215,0.002,3698.6,3698.5,2.70379883]
[1753213007372,2.956,3698.6,3698.4,2.70386188]
[1753213007810,2.956,3698.6,3698.5,2.70379883]
[1753213008312,0.002,3698.6,3698.5,2.70379883]
[1753213008609,0.002,3698.6,3698.5,4.49665913]
[1753213011032,0.002,3698.6,3698.5,4.51044145]
[1753213011181,0.002,3699.3,3699.2,3.53338719]
[1753213011382,0.002,3699.3,3699.2,4.15706335]
[1753213011577,0.002,3699.3,3699.2,1.45377616]
[1753213011892,0.002,3699.3,3698.9,2.7035048]
[1753213012278,0.002,3699.3,3698.8,0.8301]
[1753213012478,3.13815101,3699.2,3698.5,2.70379883]
[1753213012707,2.953,3699.1,3698.5,2.70379883]
[1753213013013,3.13830166,3699.0,3698.3,2.70393142]
[1753213013172,0.4348,3699.0,3698.3,2.70393142]
[1753213013376,2.953,3698.9,3698.6,2.70366188]
[1753213013576,2.953,3698.9,3698.6,2.70366528]
[1753213013804,2.70343336,3699.0,3698.3,3.37258834]
[1753213014009,0.4348,3698.8,3698.3,2.70393707]
[1753213014225,3.3878,3698.8,3698.3,2.70393707]
[1753213014406,0.4348,3698.8,3698.3,2.70393707]
[1753213014599,2.953,3698.7,3698.4,2.70386335]
[1753213014800,2.953,3698.7,3698.3,2.70392685]
[1753213015003,0.46859657,3698.6,3698.1,0.001]
[1753213015228,1.28399657,3698.6,3698.1,0.001]
[1753213015392,0.8154,3698.6,3698.2,2.70397051]
[1753213015595,0.8154,3698.6,3698.1,0.001]
[1753213015809,3.13861067,3698.5,3698.1,0.001]
[1753213016124,0.03379839,3698.4,3698.1,0.001]
[1753213016493,0.46859839,3698.4,3698.1,0.001]
[1753213016694,2.953,3698.3,3698.1,0.001]
[1753213016927,2.73781839,3698.2,3698.1,0.001]
[1753213017128,0.4348,3698.2,3698.1,0.001]
[1753213017305,3.3878,3698.2,3698.1,0.001]
[1753213018133,17.8878,3698.2,3698.1,0.001]
[1753213018321,17.453,3698.2,3698.1,0.001]
[1753213018521,20.15701817,3698.2,3698.1,0.001]
[1753213018703,20.59181817,3698.2,3698.1,0.001]
[1753213019412,17.8878,3698.2,3698.1,0.001]
[1753213019712,14.9348,3698.2,3698.1,0.001]
[1753213019911,17.8878,3698.2,3698.1,0.001]
[1753213020229,14.5,3698.2,3698.1,0.001]
[1753213020435,17.453,3698.2,3698.1,0.001]
[1753213021232,17.8878,3698.2,3698.1,0.001]
[1753213021740,14.5,3698.2,3698.1,0.001]
[1753213021953,17.8878,3698.2,3698.1,0.001]
[1753213022945,17.453,3698.2,3698.1,0.001]
[1753213024271,0.8154,3698.6,3698.1,0.001]
[1753213024407,2.953,3698.5,3698.3,2.70389969]
[1753213024603,0.7899,3699.0,3698.2,2.70401061]
[1753213024944,2.953,3698.9,3698.4,2.70387102]
[1753213025135,2.953,3698.8,3698.4,2.70387102]
[1753213025343,2.953,3698.7,3698.2,2.70399527]
[1753213025633,2.953,3698.7,3698.4,2.70385979]
[1753213026340,3.42159657,3698.6,3698.1,0.001]
[1753213026634,2.70392616,3698.4,3698.1,0.001]
[1753213026848,3.3878,3698.5,3698.1,0.001]
[1753213027142,3.13868143,3698.4,3698.1,0.001]
[1753213027309,2.70394966,3698.3,3698.1,0.001]
[1753213027510,5.65701817,3698.2,3698.1,0.001]
[1753213027852,6.09181817,3698.2,3698.1,0.001]
[1753213032024,3.13881817,3698.2,3698.1,0.001]
[1753213032230,6.12461839,3698.2,3698.1,0.001]
[1753213032428,6.09081817,3698.2,3698.1,0.001]
[1753213034154,2.70401817,3698.2,3698.1,0.001]
[1753213034349,5.65601817,3698.2,3698.1,0.001]
[1753213034859,6.09081817,3698.2,3698.1,0.001]
[1753213035216,0.7832,3698.3,3698.1,0.001]
[1753213035416,3.4348,3698.7,3698.1,2.70506223]
[1753213035620,0.002,3698.6,3698.2,2.7039948]
[1753213035942,2.954,3698.6,3698.2,2.7039948]
[1753213036145,2.954,3698.6,3698.1,3.15247392]
[1753213036345,2.954,3698.6,3698.2,0.31534739]
[1753213036517,2.954,3698.6,3698.2,3.01935903]
[1753213036722,2.954,3698.6,3698.2,0.31534739]
[1753213037052,5.65772828,3698.6,3698.2,0.31534739]
[1753213037562,2.70401817,3698.2,3698.1,0.001]
[1753213037878,9.43381817,3698.2,3698.1,0.001]
[1753213038354,10.44901817,3698.2,3698.1,0.001]
[1753213038921,10.44901817,3698.2,3698.1,1e-08]
[1753213040357,0.7778,3697.7,3697.3,0.001]
[1753213040560,5.70460323,3697.4,3697.3,0.001]
[1753213040858,8.65660323,3697.4,3697.3,0.001]
[1753213041159,9.12180323,3697.4,3697.3,0.001]
[1753213041764,9.88480323,3697.4,3697.3,0.001]
[1753213042632,6.93280323,3697.4,3697.3,0.001]
[1753213042868,9.88480323,3697.4,3697.3,0.001]
[1753213043449,7.01789586,3697.0,3696.6,0.001]
[1753213043664,10.10233446,3697.0,3696.6,0.001]
[1753213043861,4.01818855,3696.6,3696.5,1e-08]
[1753213044063,6.25540811,3696.3,3696.2,1e-08]
[1753213044361,7.0184813,3696.2,3696.1,1e-08]
[1753213044667,7.4836813,3696.2,3696.1,1e-08]
[1753213045164,10.4356813,3696.2,3696.1,1e-08]
[1753213046461,6.9336813,3696.2,3696.1,1e-08]
[1753213046667,9.8856813,3696.2,3696.1,1e-08]
[1753213047165,6.9336813,3696.2,3696.1,1e-08]
[1753213047579,9.4214813,3696.2,3696.1,1e-08]
[1753213048174,9.8866813,3696.2,3696.1,1e-08]
[1753213049065,8.6584813,3696.2,3696.1,1e-08]
[1753213049267,8.6574813,3696.2,3696.1,1e-08]
[1753213049581,3.0,3696.2,3696.1,1e-08]
[1753213049880,8.6574813,3696.2,3696.1,1e-08]
[1753213051640,9.1226813,3696.2,3696.1,1e-08]
[1753213052345,8.6574813,3696.2,3696.1,1e-08]
[1753213052642,8.6584813,3696.2,3696.1,1e-08]
[1753213053265,0.4652,3696.7,3696.1,1e-08]
[1753213053452,2.7054813,3696.2,3696.1,1e-08]
[1753213053635,2.953,3696.2,3696.1,1e-08]
[1753213053830,2.70535801,3696.4,3696.1,1e-08]
[1753213054035,8.65841098,3696.3,3696.1,1e-08]
[1753213054274,5.6584813,3696.2,3696.1,1e-08]
[1753213054568,2.953,3696.2,3696.1,1e-08]
[1753213054736,2.953,3696.2,3696.1,0.44540001]
[1753213055138,2.953,3696.2,3696.1,1e-08]
[1753213055333,5.6584813,3696.2,3696.1,1e-08]
[1753213055904,6.9059813,3696.2,3696.1,1e-08]
[1753213056199,9.9059813,3696.2,3696.1,1e-08]
[1753213057398,6.9529813,3696.2,3696.1,1e-08]
[1753213057699,9.4397813,3696.2,3696.1,1e-08]
[1753213057884,8.6574813,3696.2,3696.1,1e-08]
[1753213058876,9.1226813,3696.2,3696.1,1e-08]
[1753213060089,19.32021081,3696.2,3696.1,1e-08]
[1753213060298,27.26021081,3696.2,3696.1,1e-08]
[1753213060724,24.30821081,3696.2,3696.1,1e-08]
[1753213060898,27.26021081,3696.2,3696.1,1e-08]
[1753213061099,27.82583262,3696.2,3696.1,1e-08]
[1753213061307,27.26021081,3696.2,3696.1,1e-08]
[1753213061624,29.06727917,3696.2,3696.1,1e-08]
[1753213063237,29.06727917,3696.2,3695.3,0.001]
[1753213063431,7.008667,3695.4,3695.3,1e-08]
[1753213063617,9.961667,3695.4,3695.3,1e-08]
[1753213063996,10.426867,3695.4,3695.3,1e-08]
[1753213064693,6.923867,3695.4,3695.3,1e-08]
[1753213064900,9.876867,3695.4,3695.3,1e-08]
[1753213065132,10.426867,3695.4,3695.3,1e-08]
[1753213066510,9.876867,3695.4,3695.3,1e-08]
[1753213066710,8.659067,3695.4,3695.3,1e-08]
[1753213067239,9.124267,3695.4,3695.3,1e-08]
[1753213067652,5.706067,3695.4,3695.3,1e-08]
[1753213067819,8.659067,3695.4,3695.3,1e-08]
[1753213069811,5.706067,3695.4,3695.3,1e-08]
[1753213070315,8.659067,3695.4,3695.3,1e-08]
[1753213071442,2.70602473,3695.5,3695.3,1e-08]
[1753213071643,2.953,3695.4,3695.3,0.43230001]
[1753213072158,1.70281723,3696.1,3695.4,0.8219]
[1753213072332,5.65867095,3696.0,3695.5,0.4323]
[1753213072656,1.70281723,3696.1,3695.6,3.10193046]
[1753213072830,1.70281723,3696.1,3695.7,1.2059]
[1753213072831,2.953,3696.0,3695.7,1.2059]
[1753213073030,2.953,3696.0,3695.8,0.4323]
[1753213073236,2.953,3696.0,3695.9,0.4323]
[1753213073968,1.70281723,3696.1,3695.9,0.4323]
[1753213074133,2.952,3696.0,3695.9,0.4323]
[1753213074335,2.952,3696.0,3695.7,0.7736]
[1753213074967,2.952,3696.0,3695.8,0.4323]
[1753213075364,2.952,3696.0,3695.9,0.4323]
[1753213076345,1.70281723,3696.1,3695.9,0.4323]
[1753213076544,1.70281723,3696.1,3696.0,0.4323]
[1753213076749,0.002,3696.2,3696.1,0.8331]
[1753213076932,2.954,3696.2,3696.1,0.8331]
[1753213077136,0.002,3696.2,3696.1,1.2654]
[1753213077389,2.954,3696.2,3696.1,1.2654]
[1753213077537,5.6594813,3696.2,3696.1,1.2654]
[1753213077732,2.954,3696.2,3696.1,1.2654]
[1753213079162,5.69329981,3696.2,3696.1,0.8331]
[1753213079492,5.6594813,3696.2,3696.1,0.8331]
[1753213080057,2.70565455,3696.0,3695.7,0.7696]
[1753213080396,5.6594813,3696.2,3695.7,0.7696]
[1753213080397,0.03381943,3696.1,3695.8,0.4323]
[1753213080685,2.70752783,3696.2,3695.8,0.4323]
[1753213080984,2.951,3696.1,3695.9,0.7696]
[1753213081392,2.951,3696.1,3696.0,0.4323]
[1753213082396,2.70751361,3696.2,3696.0,0.4323]
[1753213082554,2.70751361,3696.2,3695.9,0.7696]
[1753213082555,2.7056277,3696.0,3695.9,0.7696]
[1753213082756,5.69037393,3696.1,3695.6,0.4323]
[1753213082757,2.70575249,3695.9,3695.6,1.2385]
[1753213083093,2.951,3695.8,3695.7,0.4323]
[1753213083797,5.65677412,3695.8,3695.7,0.4323]
[1753213084100,2.70584733,3695.7,3695.6,0.8062]
[1753213084400,5.65679103,3695.8,3695.7,0.4323]
[1753213084760,2.70584733,3695.7,3695.6,0.8062]
[1753213084946,2.73967042,3695.7,3695.6,0.8062]
[1753213085447,2.706067,3695.4,3695.3,0.79010001]
[1753213085728,5.657067,3695.4,3695.3,0.79010001]
[1753213086259,20.157067,3695.4,3695.3,0.79010001]
[1753213086651,20.157067,3695.4,3695.3,1e-08]
[1753213087573,20.611167,3695.4,3695.3,1e-08]
[1753213088886,14.5,3695.4,3695.3,1e-08]
[1753213089055,2.7055545,3696.1,3695.4,0.77]
[1753213089263,2.70585943,3695.7,3695.4,0.77]
[1753213089494,17.451,3695.6,3695.5,0.4323]
[1753213090580,20.15692055,3695.6,3695.4,0.77]
[1753213090951,17.451,3695.6,3695.4,0.77]
[1753213091167,20.15694731,3695.6,3695.4,0.77]
[1753213091367,2.70599377,3695.5,3695.4,0.77]
[1753213092013,2.706067,3695.4,3695.3,1e-08]
[1753213092306,5.657067,3695.4,3695.3,1e-08]
[1753213093551,2.706067,3695.4,3695.3,1e-08]
[1753213093750,5.656067,3695.4,3695.3,1e-08]
[1753213094958,20.156067,3695.4,3695.3,1e-08]
[1753213096858,20.610167,3695.4,3695.3,1e-08]
[1753213099793,20.156067,3695.4,3695.3,1e-08]
[1753213100158,20.624467,3695.4,3695.3,1e-08]
[1753213101566,23.624467,3695.4,3695.3,1e-08]
[1753213102293,24.432267,3695.4,3695.3,1e-08]
[1753213103917,24.982267,3695.4,3695.3,1e-08]
[1753213105508,22.032267,3695.4,3695.3,1e-08]
[1753213105809,24.982267,3695.4,3695.3,1e-08]
[1753213108203,24.432267,3695.4,3695.3,1e-08]
[1753213108867,23.963867,3695.4,3695.3,1e-08]
[1753213109262,21.013867,3695.4,3695.3,1e-08]
[1753213109487,20.158067,3695.4,3695.3,1e-08]
[1753213109690,23.158067,3695.4,3695.3,1e-08]
[1753213109882,23.626467,3695.4,3695.3,1e-08]
[1753213110471,24.383167,3695.4,3695.3,1e-08]
[1753213113719,24.933167,3695.4,3695.3,1e-08]
[1753213113905,27.778167,3695.4,3695.3,1e-08]
[1753213114107,35.718167,3695.4,3695.3,1e-08]
[1753213115694,32.873167,3695.4,3695.3,1e-08]
[1753213116018,29.923167,3695.4,3695.3,1e-08]
[1753213116207,32.872167,3695.4,3695.3,1e-08]
[1753213117023,32.768167,3695.4,3695.3,1e-08]
[1753213117188,35.717167,3695.4,3695.3,1e-08]
[1753213117926,32.872167,3695.4,3695.3,1e-08]
[1753213119620,29.923167,3695.4,3695.3,1e-08]
[1753213119832,32.322167,3695.4,3695.3,1e-08]
[1753213120218,28.148067,3695.4,3695.3,1e-08]
[1753213120429,31.647067,3695.4,3695.3,1e-08]
[1753213120595,32.115467,3695.4,3695.3,1e-08]
[1753213121046,28.148067,3695.4,3695.3,1e-08]
[1753213121203,31.097067,3695.4,3695.3,1e-08]
[1753213122800,31.097067,3695.4,3695.3,0.46680001]
[1753213123239,31.097067,3695.4,3695.3,1e-08]
[1753213124093,28.148067,3695.4,3695.3,1e-08]
[1753213124292,31.096067,3695.4,3695.3,1e-08]
[1753213124922,28.148067,3695.4,3695.3,0.46680001]
[1753213125109,23.156067,3695.4,3695.3,0.46680001]
[1753213125854,14.502,3695.4,3695.3,1.22160001]
[1753213126331,2.95,3695.4,3695.3,3.92774024]
[1753213126729,2.95,3695.4,3695.3,1.22160001]
[1753213126909,2.95,3695.4,3695.3,3.92774024]
[1753213127122,2.95,3695.4,3695.3,4.59114195]
[1753213127324,0.002,3695.4,3695.3,4.59114195]
[1753213127531,2.95,3695.4,3695.3,4.59114195]
[1753213127726,0.002,3695.4,3695.3,4.59114195]
[1753213127958,2.95,3695.4,3695.3,4.59114195]
[1753213128160,2.95,3695.4,3695.3,1.88500172]
[1753213128454,2.95,3695.4,3695.3,1.22160001]
[1753213129444,0.002,3695.4,3695.3,1.22160001]
[1753213129625,2.95,3695.4,3695.3,1.22160001]
[1753213130867,5.656067,3695.4,3695.3,1.22160001]
[1753213131042,2.95,3695.4,3695.3,1.22160001]
[1753213132065,2.708067,3695.4,3695.3,1e-08]
[1753213132267,5.655067,3695.4,3695.3,1e-08]
[1753213133034,20.155067,3695.4,3695.3,1e-08]
[1753213133396,17.449,3695.4,3695.3,0.46890001]
[1753213133875,0.002,3695.4,3695.3,3.17504024]
[1753213134054,2.949,3695.4,3695.3,4.52926989]
[1753213135578,0.002,3695.4,3695.3,4.52926989]
[1753213135757,2.949,3695.4,3695.3,4.52926989]
[1753213136176,0.002,3695.4,3695.3,4.52926989]
[1753213136354,2.949,3695.4,3695.3,4.52926989]
[1753213136557,0.002,3695.4,3695.3,4.52926989]
[1753213136746,2.949,3695.4,3695.3,4.52926989]
[1753213137398,0.002,3695.4,3695.3,4.52926989]
[1753213137564,0.002,3695.4,3695.3,4.54311074]
[1753213137766,0.002,3695.4,3695.3,4.52926989]
[1753213137950,0.002,3695.4,3695.3,4.54311074]
[1753213138261,0.002,3695.4,3695.3,4.52926989]
[1753213141804,0.002,3695.4,3695.3,1.82312966]
[1753213142094,2.948,3695.4,3695.3,1e-08]
[1753213142287,0.002,3695.4,3695.3,1e-08]
[1753213142453,2.948,3695.4,3695.3,3.17504024]
[1753213142648,2.948,3695.4,3695.3,3.93074024]
[1753213142890,0.002,3695.4,3695.3,4.59443667]
[1753213143090,0.002,3695.4,3695.3,1.88829644]
[1753213143256,0.002,3695.4,3695.3,0.75570001]
[1753213143463,0.002,3695.4,3695.3,3.93074024]
[1753213144492,0.002,3695.4,3695.3,1.22460001]
[1753213144853,0.002,3695.4,3695.3,1e-08]
[1753213145761,3.177667,3695.4,3695.3,1e-08]
[1753213146307,0.002,3695.4,3695.3,1.22460001]
[1753213146506,2.708067,3695.4,3695.3,1.22460001]
[1753213146856,0.002,3695.4,3695.3,1.22460001]
[1753213147056,2.708067,3695.4,3695.3,1.22460001]
[1753213147584,0.002,3695.4,3695.3,1.22460001]
[1753213147790,2.947,3695.4,3695.3,1.22460001]
[1753213148100,5.653067,3695.4,3695.3,1.22460001]
[1753213148309,2.947,3695.4,3695.3,1.22460001]
[1753213149296,0.002,3695.4,3695.3,1.22460001]
[1753213149500,2.947,3695.4,3695.3,1.61768171]
[1753213150078,0.002,3695.4,3695.3,1.61768171]
[1753213150730,0.002,3695.4,3695.3,3.93074024]
[1753213151013,0.002,3695.4,3695.3,1.47726253]
[1753213151726,2.708067,3695.4,3695.3,0.25266253]
[1753213152912,0.002,3695.4,3695.3,0.72156253]
[1753213153119,2.708067,3695.4,3695.3,0.25266253]
[1753213153279,0.002,3695.4,3695.3,0.25266253]
[1753213153977,0.002,3695.4,3695.3,0.72156253]
[1753213154402,2.946,3695.4,3695.3,0.46890001]
[1753213154604,2.946,3695.4,3695.3,0.72192673]
[1753213154803,2.946,3695.4,3695.3,0.25302673]
[1753213155014,0.002,3695.4,3695.3,0.25302673]
[1753213155310,2.946,3695.4,3695.3,0.72192673]
[1753213155515,2.946,3695.4,3695.3,0.25302673]
[1753213155693,5.652067,3695.4,3695.3,0.25302673]
[1753213156090,6.121667,3695.4,3695.3,0.25302673]
[1753213157491,6.902767,3695.4,3695.3,0.25302673]
[1753213157696,21.402767,3695.4,3695.3,0.25302673]
[1753213157913,21.402767,3695.4,3695.3,1e-08]
[1753213158218,24.402767,3695.4,3695.3,1e-08]
[1753213161696,24.402767,3695.4,3695.3,0.25311243]
[1753213163634,24.402767,3695.4,3695.3,0.25309624]
[1753213164222,24.402767,3695.4,3695.3,0.25308519]
[1753213165333,21.458767,3695.4,3695.3,0.25308519]